bitfinex-derivatives/quotes_SOLF0:USTF0_20260208
["timestamp","ask_amount","ask_price","bid_price","bid_amount"]
[1770569818857,20.60387633,86.188,86.076,34.95]
[1770569818858,20.60387633,86.188,86.117,21.32705091]
[1770569819051,20.60387633,86.225,86.117,21.32705091]
[1770569819251,20.60387633,86.223,86.117,21.32705091]
[1770569820053,20.60387633,86.212,86.139,21.32705091]
[1770569821449,20.60387633,86.212,86.141,21.32705091]
[1770569821661,20.60387633,86.212,86.122,21.32705091]
[1770569822760,20.60387633,86.21,86.128,21.32705091]
[1770569823147,20.60387633,86.206,86.128,21.32705091]
[1770569823954,20.60387633,86.191,86.128,21.32705091]
[1770569824754,20.60387633,86.189,86.128,21.32705091]
[1770569825056,20.60387633,86.189,86.11,21.32705091]
[1770569825260,20.60387633,86.187,86.114,21.32705091]
[1770569825863,20.60387633,86.176,86.095,21.32705091]
[1770569826762,10.4523,86.172,86.095,21.32705091]
[1770569827551,10.4512,86.182,86.099,21.32705091]
[1770569827763,31.05507633,86.182,86.099,21.32705091]
[1770569827957,20.60387633,86.181,86.099,21.32705091]
[1770569828761,20.60387633,86.176,86.101,21.32705091]
[1770569829465,20.60387633,86.174,86.101,21.32705091]
[1770569830061,298.0,86.231,86.08,56.0]
[1770569830062,20.60387633,86.188,86.105,21.32705091]
[1770569831759,20.60387633,86.188,86.126,21.32705091]
[1770569833066,20.60387633,86.188,86.129,21.32705091]
[1770569834263,20.60387633,86.188,86.083,21.32705091]
[1770569835664,20.16268942,86.182,86.095,21.05381419]
[1770569836264,10.4517,86.177,86.099,10.4612]
[1770569836465,20.16268942,86.176,86.1,21.05381419]
[1770569837262,20.16268942,86.176,86.102,21.05381419]
[1770569838870,20.16268942,86.176,86.104,21.05381419]
[1770569840071,20.16268942,86.172,86.104,21.05381419]
[1770569840769,20.16268942,86.172,86.105,21.05381419]
[1770569840964,20.16268942,86.19,86.105,21.05381419]
[1770569841169,20.16268942,86.188,86.105,21.05381419]
[1770569841365,28.84761227,86.187,86.105,21.05381419]
[1770569841573,20.16268942,86.185,86.105,21.05381419]
[1770569841773,20.16268942,86.185,86.111,10.4596]
[1770569841973,20.16268942,86.183,86.105,21.05381419]
[1770569842173,20.16268942,86.181,86.105,21.05381419]
[1770569842373,20.16268942,86.179,86.105,21.05381419]
[1770569842575,20.16268942,86.177,86.105,21.05381419]
[1770569843168,20.16268942,86.173,86.105,21.05381419]
[1770569844174,162.4855,86.229,86.092,10.4619]
[1770569844175,20.16268942,86.171,86.092,10.4619]
[1770569844377,20.16268942,86.169,86.092,10.4619]
[1770569844572,20.16268942,86.167,86.093,21.05381419]
[1770569845270,20.16268942,86.167,86.067,2.02031344]
[1770569845271,20.16268942,86.167,86.103,21.05381419]
[1770569846879,20.16268942,86.167,86.107,10.4601]
[1770569847783,20.16268942,86.167,86.108,21.05381419]
[1770569847971,20.16268942,86.195,86.119,21.05381419]
[1770569848279,20.16268942,86.188,86.086,21.05381419]
[1770569848482,20.16268942,86.186,86.086,21.05381419]
[1770569848677,20.16268942,86.184,86.086,21.05381419]
[1770569848883,20.16268942,86.182,86.097,21.05381419]
[1770569849082,20.16268942,86.18,86.097,21.05381419]
[1770569849282,20.16268942,86.178,86.097,21.05381419]
[1770569849480,20.16268942,86.176,86.097,21.05381419]
[1770569849679,20.16268942,86.174,86.097,21.05381419]
[1770569849877,20.16268942,86.167,86.097,21.05381419]
[1770569850081,20.16268942,86.165,86.097,21.05381419]
[1770569850286,20.16268942,86.163,86.097,21.05381419]
[1770569850587,20.16268942,86.161,86.097,21.05381419]
[1770569850784,20.16268942,86.159,86.097,21.05381419]
[1770569851079,20.16268942,86.157,86.097,21.05381419]
[1770569852590,20.16268942,86.157,86.099,21.05381419]
[1770569853188,20.16268942,86.144,86.066,21.05381419]
[1770569853382,20.16268942,86.142,86.066,21.05381419]
[1770569853577,21.02966452,86.181,86.066,21.05381419]
[1770569853578,20.16268942,86.14,86.066,21.05381419]
[1770569854280,20.16268942,86.124,86.042,21.05381419]
[1770569854486,20.16268942,86.122,86.042,21.05381419]
[1770569854786,20.16268942,86.12,86.042,21.05381419]
[1770569856993,20.16268942,86.12,86.05,21.05381419]
[1770569858088,20.16268942,86.12,86.03,56.0]
[1770569858089,20.16268942,86.12,86.053,21.05381419]
[1770569858696,20.16268942,86.12,86.061,21.05381419]
[1770569858997,20.16268942,86.137,86.061,21.05381419]
[1770569859203,20.16268942,86.135,86.061,21.05381419]
[1770569859490,20.16268942,86.135,86.031,21.05381419]
[1770569859697,21.02966452,86.197,86.031,21.05381419]
[1770569859698,20.16268942,86.133,86.031,21.05381419]
[1770569859891,162.5951,86.171,86.031,21.05381419]
[1770569859892,20.16268942,86.113,86.031,21.05381419]
[1770569860800,20.16268942,86.11,86.031,21.05381419]
[1770569862698,20.16268942,86.108,86.031,21.05381419]
[1770569863200,20.16268942,86.113,86.031,21.05381419]
[1770569863597,20.16268942,86.111,86.031,21.05381419]
[1770569863900,20.16268942,86.109,85.989,21.05381419]
[1770569864100,20.16268942,86.098,86.016,21.05381419]
[1770569865497,20.97561022,86.133,86.018,20.60480277]
[1770569865802,20.97561022,86.131,86.018,20.60480277]
[1770569866009,20.97561022,86.124,86.041,20.60480277]
[1770569866695,20.97561022,86.124,86.043,10.468]
[1770569866893,20.97561022,86.124,86.044,20.60480277]
[1770569867293,20.97561022,86.12,86.044,20.60480277]
[1770569868395,20.97561022,86.117,86.044,20.60480277]
[1770569868696,20.97561022,86.115,86.044,20.60480277]
[1770569869096,27.49160404,86.184,86.0,56.0]
[1770569869097,20.97561022,86.114,86.006,20.60480277]
[1770569869304,162.6528,86.141,86.006,20.60480277]
[1770569869305,20.97561022,86.112,86.006,20.60480277]
[1770569869497,20.97561022,86.11,86.006,20.60480277]
[1770569869800,20.97561022,86.1,86.018,20.60480277]
[1770569870398,20.97561022,86.1,86.02,20.60480277]
[1770569872501,20.97561022,86.098,86.02,20.60480277]
[1770569873804,20.97561022,86.095,86.02,20.60480277]
[1770569874600,20.97561022,86.095,86.021,20.60480277]
[1770569875200,20.97561022,86.095,86.026,10.47]
[1770569875400,20.97561022,86.095,86.027,20.60480277]
[1770569875602,20.97561022,86.111,86.027,20.60480277]
[1770569876107,20.97561022,86.111,86.029,20.60480277]
[1770569876802,20.97561022,86.108,86.029,20.60480277]
[1770569877705,20.97561022,86.104,86.029,20.60480277]
[1770569878501,20.97561022,86.098,86.029,20.60480277]
[1770569879800,20.97561022,86.118,86.033,20.60480277]
[1770569880711,20.97561022,86.118,86.047,20.60480277]
[1770569882114,20.97561022,86.118,86.048,10.4674]
[1770569882306,20.97561022,86.118,86.048,20.60480277]
[1770569883009,20.97561022,86.111,86.048,20.60480277]
[1770569883814,20.97561022,86.109,86.048,20.60480277]
[1770569884314,20.97561022,86.136,86.06,20.60480277]
[1770569884511,20.97561022,86.134,86.06,20.60480277]
[1770569884703,20.97561022,86.132,86.06,20.60480277]
[1770569884905,20.97561022,86.13,86.06,20.60480277]
[1770569885108,20.97561022,86.128,86.06,20.60480277]
[1770569885315,20.97561022,86.126,86.06,20.60480277]
[1770569888611,20.97561022,86.126,86.062,20.60480277]
[1770569889913,20.97561022,86.126,86.067,20.60480277]
[1770569890314,20.97561022,86.16,86.067,20.60480277]
[1770569890519,20.97561022,86.158,86.067,20.60480277]
[1770569890714,29.9479331,86.157,86.067,20.60480277]
[1770569890916,20.97561022,86.157,86.09,20.60480277]
[1770569891418,20.97561022,86.173,86.093,20.60480277]
[1770569891619,8.97413717,86.172,86.093,20.60480277]
[1770569891822,8.97413717,86.171,86.093,20.60480277]
[1770569892021,20.97561022,86.173,86.097,20.60480277]
[1770569892217,20.97561022,86.173,86.049,20.60480277]
[1770569892423,20.97561022,86.171,86.052,20.60480277]
[1770569892622,20.97561022,86.169,86.052,20.60480277]
[1770569892821,20.97561022,86.167,86.052,20.60480277]
[1770569893022,20.97561022,86.165,86.052,20.60480277]
[1770569893222,20.97561022,86.163,86.052,20.60480277]
[1770569893424,20.97561022,86.161,86.052,20.60480277]
[1770569893826,20.97561022,86.178,86.092,20.60480277]
[1770569894026,8.98313533,86.177,86.092,20.60480277]
[1770569894225,8.98313533,86.176,86.092,20.60480277]
[1770569894523,20.97561022,86.178,86.031,232.24]
[1770569894524,20.97561022,86.178,86.104,20.60480277]
[1770569895522,20.88789601,86.195,86.116,20.83254177]
[1770569895722,10.4491,86.199,86.116,20.83254177]
[1770569895723,29.80707765,86.194,86.116,20.83254177]
[1770569895923,20.88789601,86.194,86.116,20.83254177]
[1770569896222,20.88789601,86.194,86.123,20.83254177]
[1770569896617,20.88789601,86.211,86.13,20.83254177]
[1770569896821,20.88789601,86.209,86.13,20.83254177]
[1770569897127,20.88789601,86.207,86.13,20.83254177]
[1770569897431,20.88789601,86.204,86.112,20.83254177]
[1770569897727,20.88789601,86.202,86.112,20.83254177]
[1770569898030,20.88789601,86.2,86.112,20.83254177]
[1770569898230,20.88789601,86.198,86.112,20.83254177]
[1770569898430,21.02966452,86.235,86.112,20.83254177]
[1770569898431,20.88789601,86.196,86.112,20.83254177]
[1770569898729,20.88789601,86.192,86.112,20.83254177]
[1770569899028,20.88789601,86.19,86.112,20.83254177]
[1770569899332,20.88789601,86.188,86.112,20.83254177]
[1770569899528,20.88789601,86.186,86.112,20.83254177]
[1770569899828,20.88789601,86.184,86.112,20.83254177]
[1770569900022,21.02966452,86.232,86.112,20.83254177]
[1770569900023,20.88789601,86.179,86.112,20.83254177]
[1770569900224,20.88789601,86.177,86.112,20.83254177]
[1770569900431,20.88789601,86.175,86.112,20.83254177]
[1770569902027,20.88789601,86.194,86.114,20.83254177]
[1770569903725,20.88789601,86.194,86.12,10.4586]
[1770569903929,20.88789601,86.194,86.121,20.83254177]
[1770569904429,20.88789601,86.193,86.11,20.83254177]
[1770569905031,20.88789601,86.193,86.128,20.83254177]
[1770569905224,20.88789601,86.21,86.128,20.83254177]
[1770569906532,20.88789601,86.208,86.111,20.83254177]
[1770569906733,20.88789601,86.206,86.111,20.83254177]
[1770569907035,13.62089786,86.238,86.07,56.0]
[1770569907036,20.88789601,86.204,86.071,20.83254177]
[1770569907234,20.8925,86.223,86.082,20.83254177]
[1770569907235,20.88789601,86.163,86.082,20.83254177]
[1770569908027,20.88789601,86.14,86.082,20.83254177]
[1770569908430,20.88789601,86.14,86.032,20.83254177]
[1770569908637,20.88789601,86.138,86.06,31.29844177]
[1770569908927,20.88789601,86.138,86.061,20.83254177]
[1770569909235,20.88789601,86.138,86.063,20.83254177]
[1770569909833,10.41040563,86.182,86.063,20.83254177]
[1770569909834,20.88789601,86.135,86.063,20.83254177]
[1770569910533,20.88789601,86.133,86.063,20.83254177]
[1770569911434,20.88789601,86.133,86.064,20.83254177]
[1770569911934,20.88789601,86.157,86.066,20.83254177]
[1770569912634,20.88789601,86.157,86.072,10.4644]
[1770569912929,20.88789601,86.157,86.073,20.83254177]
[1770569913126,20.88789601,86.153,86.073,20.83254177]
[1770569913530,20.88789601,86.153,86.075,20.83254177]
[1770569914335,20.88789601,86.151,86.077,20.83254177]
[1770569915038,20.88789601,86.148,86.064,20.83254177]
[1770569916534,20.88789601,86.128,86.064,20.83254177]
[1770569916938,20.88789601,86.128,86.031,20.83254177]
[1770569917828,20.88789601,86.123,86.044,20.83254177]
[1770569918426,20.88789601,86.121,86.046,20.83254177]
[1770569919631,20.88789601,86.119,86.046,20.83254177]
[1770569919838,20.88789601,86.117,86.046,20.83254177]
[1770569920036,20.88789601,86.115,86.002,20.83254177]
[1770569920436,162.6329,86.151,86.002,20.83254177]
[1770569920437,20.88789601,86.113,86.002,20.83254177]
[1770569920642,20.88789601,86.111,86.002,20.83254177]
[1770569920837,20.88789601,86.098,86.023,20.83254177]
[1770569921535,20.88789601,86.117,86.025,20.83254177]
[1770569922839,20.88789601,86.117,86.042,20.83254177]
[1770569923243,20.88789601,86.115,86.042,20.83254177]
[1770569923543,20.88789601,86.114,86.042,20.83254177]
[1770569926145,20.60830352,86.112,86.042,20.83254177]
[1770569926642,20.60830352,86.11,86.042,20.83254177]
[1770569928950,20.60830352,86.108,86.028,10.4697]
[1770569929146,20.60830352,86.108,86.026,19.94189709]
[1770569929350,20.60830352,86.106,86.026,19.94189709]
[1770569929551,20.60830352,86.096,86.026,19.94189709]
[1770569930853,20.60830352,86.096,86.028,19.94189709]
[1770569931248,20.60830352,86.112,86.046,19.94189709]
[1770569931449,20.60830352,86.136,86.046,19.94189709]
[1770569932059,20.60830352,86.12,86.046,19.94189709]
[1770569932950,20.60830352,86.12,86.058,19.94189709]
[1770569933752,20.60830352,86.12,86.059,30.40789709]
[1770569933952,20.60830352,86.12,86.059,19.94189709]
[1770569933953,20.60830352,86.119,86.059,19.94189709]
[1770569934552,20.60830352,86.119,86.061,19.94189709]
[1770569936748,8.87744739,86.118,86.047,10.4675]
[1770569936944,20.60830352,86.116,86.051,19.94189709]
[1770569938355,10.4593,86.115,86.053,10.4667]
[1770569938650,20.60830352,86.114,86.054,19.94189709]
[1770569939856,20.60830352,86.124,86.061,19.94189709]
[1770569941958,20.60830352,86.14,86.064,19.94189709]
[1770569942355,20.60830352,86.14,86.034,11.61]
[1770569942356,20.60830352,86.153,86.066,19.94189709]
[1770569942557,29.50186562,86.152,86.066,19.94189709]
[1770569942859,20.60830352,86.168,86.097,19.94189709]
[1770569943551,20.60830352,86.187,86.104,19.94189709]
[1770569944656,20.60830352,86.187,86.113,19.94189709]
[1770569944953,20.60830352,86.202,86.113,19.94189709]
[1770569945460,20.60830352,86.202,86.133,19.94189709]
[1770569945757,20.60830352,86.232,86.139,19.94189709]
[1770569946345,20.60830352,86.232,86.145,19.94189709]
[1770569947654,20.60830352,86.23,86.145,19.94189709]
[1770569949359,20.60830352,86.227,86.145,19.94189709]
[1770569951354,20.60830352,86.223,86.145,19.94189709]
[1770569952756,20.60830352,86.218,86.145,19.94189709]
[1770569955762,20.60830352,86.218,86.148,21.08358757]
[1770569956350,21.04063676,86.237,86.154,21.08358757]
[1770569957160,21.04063676,86.237,86.12,56.0]
[1770569957161,21.04063676,86.237,86.159,21.08358757]
[1770569958753,21.04063676,86.237,86.169,21.08358757]
[1770569959349,21.04063676,86.237,86.171,21.08358757]
[1770569962366,21.04063676,86.237,86.154,21.08358757]
[1770569962761,21.04063676,86.225,86.154,21.08358757]
[1770569964763,21.04063676,86.225,86.155,21.08358757]
[1770569965868,10.41717804,86.278,86.155,21.08358757]
[1770569965869,21.04063676,86.223,86.155,21.08358757]
[1770569969966,21.04063676,86.223,86.122,46.47]
[1770569969967,21.04063676,86.223,86.157,21.08358757]
[1770569972067,21.04063676,86.223,86.158,21.08358757]
[1770569972776,21.04063676,86.223,86.161,21.08358757]
[1770569973874,21.04063676,86.223,86.146,21.08358757]
[1770569974474,21.04063676,86.218,86.146,21.08358757]
[1770569975669,21.04063676,86.214,86.146,21.08358757]
[1770569976970,21.04063676,86.214,86.148,21.08358757]
[1770569977374,21.04063676,86.239,86.148,21.08358757]
[1770569978672,10.4443,86.238,86.161,10.4536]
[1770569978879,21.04063676,86.237,86.162,21.08358757]
[1770569979777,21.04063676,86.237,86.167,21.08358757]
[1770569979975,21.04063676,86.257,86.167,21.08358757]
[1770569981581,21.04063676,86.255,86.167,21.08358757]
[1770569981879,21.04063676,86.253,86.176,21.08358757]
[1770569982275,29.88987915,86.252,86.176,21.08358757]
[1770569982475,21.04063676,86.25,86.176,21.08358757]
[1770569982676,21.04063676,86.25,86.18,10.4513]
[1770569982879,21.04063676,86.25,86.181,21.08358757]
[1770569983468,21.04063676,86.25,86.126,11.61]
[1770569983469,21.04063676,86.235,86.133,21.08358757]
[1770569983677,21.04063676,86.233,86.133,21.08358757]
[1770569983872,21.04063676,86.231,86.133,21.08358757]
[1770569984369,21.04063676,86.229,86.133,21.08358757]
[1770569984567,8.87289424,86.228,86.133,21.08358757]
[1770569984773,21.04063676,86.228,86.158,21.08358757]
[1770569984970,19.42898743,86.245,86.158,21.08358757]
[1770569985274,28.26802715,86.244,86.158,21.08358757]
[1770569985480,8.83903972,86.243,86.171,20.36248858]
[1770569985678,19.42898743,86.244,86.171,20.36248858]
[1770569986180,19.42898743,86.244,86.177,20.36248858]
[1770569986478,8.85002531,86.243,86.177,20.36248858]
[1770569986678,19.42898743,86.244,86.177,20.36248858]
[1770569987181,8.86410535,86.243,86.177,20.36248858]
[1770569987381,19.42898743,86.241,86.184,20.36248858]
[1770569987581,19.42898743,86.239,86.184,20.36248858]
[1770569987769,19.42898743,86.237,86.184,20.36248858]
[1770569987974,8.86410535,86.236,86.184,20.36248858]
[1770569988176,19.42898743,86.237,86.184,20.36248858]
[1770569988376,27.82549237,86.3,86.12,218.6904]
[1770569988377,19.42898743,86.232,86.159,20.36248858]
[1770569988581,19.42898743,86.23,86.159,20.36248858]
[1770569988782,28.29859943,86.229,86.159,20.36248858]
[1770569988981,28.29859943,86.228,86.159,20.36248858]
[1770569989182,28.29836567,86.227,86.159,20.36248858]
[1770569989376,8.86937824,86.226,86.159,20.36248858]
[1770569989577,19.42898743,86.227,86.159,20.36248858]
[1770569989784,8.86888651,86.226,86.171,20.36248858]
[1770569990086,19.42898743,86.227,86.171,20.36248858]
[1770569991185,19.42898743,86.225,86.171,20.36248858]
[1770569991390,19.42898743,86.223,86.171,20.36248858]
[1770569991577,8.87052716,86.222,86.171,20.36248858]
[1770569991782,8.87052716,86.221,86.171,20.36248858]
[1770569991982,19.42898743,86.219,86.161,20.36248858]
[1770569992188,8.87052716,86.218,86.161,20.36248858]
[1770569992386,8.87134267,86.217,86.161,20.36248858]
[1770569992585,19.42898743,86.219,86.161,20.36248858]
[1770569993396,8.87146836,86.218,86.161,20.36248858]
[1770569993586,19.42898743,86.219,86.161,20.36248858]
[1770569993786,19.42898743,86.219,86.121,34.86]
[1770569993787,19.42898743,86.217,86.146,20.36248858]
[1770569993996,19.42898743,86.215,86.128,20.36248858]
[1770569994189,10.41717804,86.233,86.128,20.36248858]
[1770569994190,19.42898743,86.213,86.128,20.36248858]
[1770569994394,19.42898743,86.176,86.096,30.82398858]
[1770569994900,19.42898743,86.176,86.103,20.36248858]
[1770569995498,19.42898743,86.176,86.042,28.62897263]
[1770569995499,19.42898743,86.176,86.107,20.36248858]
[1770569998597,19.42898743,86.176,86.111,20.36248858]
[1770569998800,19.42898743,86.216,86.111,20.36248858]
[1770569998999,19.42898743,86.214,86.111,20.36248858]
[1770569999195,19.42898743,86.203,86.125,20.36248858]
[1770569999597,19.42898743,86.203,86.131,10.4573]
[1770569999905,19.42898743,86.203,86.104,20.36248858]
[1770570000103,19.42898743,86.201,86.104,20.36248858]
[1770570000303,19.42898743,86.165,86.084,20.36248858]
[1770570001503,19.42898743,86.164,86.084,20.36248858]
[1770570001806,19.42898743,86.164,86.067,20.36248858]
[1770570002105,19.42898743,86.148,86.067,20.36248858]
[1770570002297,19.42898743,86.148,86.007,183.8478]
[1770570002298,19.42898743,86.196,86.069,20.36248858]
[1770570002502,19.42898743,86.194,86.111,20.36248858]
[1770570002700,19.42898743,86.239,86.113,20.36248858]
[1770570002903,19.42898743,86.237,86.123,20.36248858]
[1770570003104,19.42898743,86.225,86.133,20.36248858]
[1770570003303,19.42898743,86.223,86.133,20.36248858]
[1770570003506,19.42898743,86.217,86.135,20.36248858]
[1770570003905,19.42898743,86.262,86.135,20.36248858]
[1770570004104,19.42898743,86.26,86.135,20.36248858]
[1770570004304,19.42898743,86.258,86.135,20.36248858]
[1770570004505,19.42898743,86.256,86.135,20.36248858]
[1770570004706,19.42898743,86.234,86.148,20.36248858]
[1770570005401,19.42898743,86.234,86.152,20.36248858]
[1770570005601,19.42898743,86.281,86.153,20.36248858]
[1770570005801,176.24714894,86.314,86.153,20.36248858]
[1770570005802,19.42898743,86.279,86.153,20.36248858]
[1770570006003,19.42898743,86.263,86.173,20.36248858]
[1770570006706,19.42898743,86.263,86.192,20.36248858]
[1770570006909,19.42898743,86.294,86.192,20.36248858]
[1770570007810,19.42898743,86.292,86.198,20.36248858]
[1770570008704,19.42898743,86.292,86.203,10.4485]
[1770570008897,19.42898743,86.292,86.204,20.36248858]
[1770570009302,19.42898743,86.286,86.186,20.36248858]
[1770570009501,10.41717804,86.319,86.186,20.36248858]
[1770570009502,19.42898743,86.284,86.186,20.36248858]
[1770570009703,19.42898743,86.282,86.186,20.36248858]
[1770570010107,19.42898743,86.278,86.188,20.36248858]
[1770570010514,19.42898743,86.298,86.188,20.36248858]
[1770570010912,19.42898743,86.298,86.218,20.36248858]
[1770570012714,19.42898743,86.298,86.225,20.36248858]
[1770570013509,19.42898743,86.298,86.23,20.36248858]
[1770570014410,19.42898743,86.296,86.208,20.36248858]
[1770570014604,19.42898743,86.294,86.187,20.36248858]
[1770570014910,19.42898743,86.292,86.187,20.36248858]
[1770570015112,19.29579015,86.29,86.187,20.36248858]
[1770570015311,162.329,86.312,86.187,20.36248858]
[1770570015312,19.29579015,86.288,86.187,20.36248858]
[1770570015519,19.29579015,86.276,86.187,20.36248858]
[1770570016213,19.29579015,86.276,86.189,20.35417095]
[1770570016915,19.29579015,86.276,86.194,20.35417095]
[1770570018819,19.29579015,86.276,86.196,20.35417095]
[1770570019220,19.29579015,86.292,86.199,20.35417095]
[1770570019821,19.29579015,86.292,86.218,20.35417095]
[1770570020314,19.29579015,86.292,86.22,20.35417095]
[1770570020520,19.29579015,86.315,86.22,20.35417095]
[1770570021810,19.29579015,86.315,86.226,20.35417095]
[1770570022219,19.29579015,86.313,86.226,20.35417095]
[1770570022411,8.62090195,86.314,86.226,20.35417095]
[1770570022412,19.29579015,86.311,86.226,20.35417095]
[1770570022617,10.46895199,86.334,86.226,20.35417095]
[1770570022618,19.29579015,86.309,86.226,20.35417095]
[1770570023216,19.29579015,86.309,86.207,20.35417095]
[1770570023414,19.29579015,86.307,86.207,20.35417095]
[1770570023611,19.29579015,86.305,86.207,20.35417095]
[1770570024214,19.29579015,86.3,86.215,20.35417095]
[1770570024818,19.29579015,86.3,86.217,20.35417095]
[1770570025918,19.29579015,86.3,86.227,10.4456]
[1770570026121,19.29579015,86.3,86.203,11.61]
[1770570026122,19.29579015,86.3,86.228,20.35417095]
[1770570027727,19.29579015,86.3,86.229,10.4453]
[1770570027926,19.29579015,86.3,86.23,20.35417095]
[1770570029428,19.29579015,86.3,86.216,10.4469]
[1770570029821,19.29579015,86.3,86.217,20.35417095]
[1770570030424,19.29579015,86.3,86.235,20.35417095]
[1770570031221,19.29579015,86.317,86.238,10.4443]
[1770570031427,19.29579015,86.317,86.239,20.35417095]
[1770570031828,19.29579015,86.317,86.241,20.35417095]
[1770570032833,19.29579015,86.317,86.257,10.4419]
[1770570033021,19.29579015,86.317,86.241,20.35417095]
[1770570033225,19.29579015,86.317,86.213,34.86]
[1770570033226,19.29579015,86.317,86.203,20.35417095]
[1770570034726,19.29579015,86.312,86.224,20.35417095]
[1770570035626,19.29579015,86.297,86.224,20.35417095]
[1770570037333,19.29579015,86.297,86.227,20.35417095]
[1770570038735,19.29579015,86.318,86.23,20.35417095]
[1770570039931,19.29579015,86.318,86.245,20.35417095]
[1770570040623,19.29579015,86.318,86.203,20.35417095]
[1770570041229,19.29579015,86.298,86.217,20.35417095]
[1770570042433,19.29579015,86.296,86.22,10.4464]
[1770570042729,19.29579015,86.296,86.221,20.35417095]
[1770570042931,19.29579015,86.337,86.221,20.35417095]
[1770570043632,19.29579015,86.327,86.245,20.35417095]
[1770570045033,20.62532414,86.345,86.264,20.30417416]
[1770570046338,20.62532414,86.345,86.274,20.30417416]
[1770570046929,20.62532414,86.345,86.256,20.30417416]
[1770570047130,20.62532414,86.343,86.256,20.30417416]
[1770570047332,20.62532414,86.341,86.256,20.30417416]
[1770570048339,20.62532414,86.339,86.256,20.30417416]
[1770570048527,20.62532414,86.336,86.256,20.30417416]
[1770570048734,20.62532414,86.336,86.26,20.30417416]
[1770570049841,20.62532414,86.336,86.273,20.30417416]
[1770570050238,14.62532414,86.336,86.273,20.30417416]
[1770570050838,14.62532414,86.336,86.276,20.30417416]
[1770570051337,14.62532414,86.336,86.252,20.30417416]
[1770570052136,10.46895199,86.358,86.252,20.30417416]
[1770570052137,18.73306527,86.33,86.252,20.30417416]
[1770570052735,18.73306527,86.33,86.254,20.30417416]
[1770570053442,18.73306527,86.33,86.256,20.30417416]
[1770570053639,18.47599778,86.343,86.256,20.30417416]
[1770570053839,8.88908231,86.342,86.256,20.30417416]
[1770570054037,8.88908231,86.341,86.256,20.30417416]
[1770570054344,18.47599778,86.343,86.28,20.30417416]
[1770570054745,18.47599778,86.343,86.282,20.30417416]
[1770570054946,18.8005086,86.368,86.282,20.30417416]
[1770570055141,18.8005086,86.366,86.282,20.30417416]
[1770570055340,8.8979238,86.365,86.282,20.30417416]
[1770570055547,27.69836059,86.364,86.282,20.30417416]
[1770570055849,18.80204554,86.381,86.298,20.30417416]
[1770570056741,18.80204554,86.381,86.317,20.30417416]
[1770570056939,10.4247,86.401,86.317,20.30417416]
[1770570057139,18.3197287,86.419,86.317,20.30417416]
[1770570057343,8.88726657,86.418,86.34,20.30417416]
[1770570057651,18.31964085,86.44,86.34,20.30417416]
[1770570057839,8.88928769,86.439,86.34,20.30417416]
[1770570058143,8.88928769,86.439,86.314,162.3242]
[1770570058144,18.31964085,86.44,86.367,20.30417416]
[1770570058543,18.31964085,86.44,86.374,20.30417416]
[1770570059344,19.20746236,86.445,86.34,20.30417416]
[1770570060038,19.20746236,86.445,86.365,20.30417416]
[1770570060237,19.20746236,86.445,86.233,35.85412676]
[1770570060238,18.67987806,86.443,86.32,20.30417416]
[1770570060446,18.67987806,86.441,86.32,20.30417416]
[1770570060745,18.54172619,86.426,86.32,20.30417416]
[1770570060950,18.54172619,86.385,86.314,20.30417416]
[1770570061547,18.54172619,86.381,86.289,20.30417416]
[1770570062440,18.54346013,86.4,86.306,20.30417416]
[1770570063348,18.54346013,86.4,86.285,34.86]
[1770570063349,18.68365692,86.439,86.32,20.30417416]
[1770570063537,18.68365692,86.437,86.32,20.30417416]
[1770570063745,18.68489218,86.435,86.323,20.30417416]
[1770570064341,18.68489218,86.432,86.34,20.30417416]
[1770570064848,10.46895199,86.462,86.342,20.30417416]
[1770570064849,18.97859163,86.43,86.342,20.30417416]
[1770570065548,18.97859163,86.428,86.345,20.30417416]
[1770570065943,18.97859163,86.428,86.347,20.30417416]
[1770570067543,18.97859163,86.428,86.35,20.30417416]
[1770570067739,19.2387406,86.423,86.307,20.30417416]
[1770570068652,19.2387406,86.404,86.314,20.30417416]
[1770570069154,18.82530103,86.399,86.314,20.30417416]
[1770570070038,18.82530103,86.399,86.316,20.30417416]
[1770570071047,19.20915496,86.422,86.33,20.30417416]
[1770570071846,19.20915496,86.422,86.347,20.30417416]
[1770570072255,19.21070754,86.44,86.347,20.30417416]
[1770570073254,19.21070754,86.44,86.355,20.30417416]
[1770570074853,18.77804389,86.437,86.355,20.30417416]
[1770570075055,18.77804389,86.437,86.336,19.1009131]
[1770570075262,18.80707619,86.435,86.336,19.1009131]
[1770570075557,8.75339848,86.436,86.336,19.1009131]
[1770570075558,18.80707619,86.433,86.336,19.1009131]
[1770570075757,18.8071736,86.431,86.336,19.1009131]
[1770570076451,0.52895026,86.445,86.336,19.1009131]
[1770570076452,18.8071736,86.444,86.336,19.1009131]
[1770570076650,19.08710367,86.442,86.336,19.1009131]
[1770570076852,19.08710367,86.44,86.336,19.1009131]
[1770570077050,19.08710367,86.438,86.336,19.1009131]
[1770570077251,19.08710367,86.436,86.336,19.1009131]
[1770570077447,19.08710367,86.434,86.336,19.1009131]
[1770570077860,19.0876631,86.426,86.342,19.1009131]
[1770570078469,19.0876631,86.423,86.349,10.4309]